bitfinex/quotes_ETHUSD_20260106
["timestamp","ask_amount","ask_price","bid_price","bid_amount"]
[1767715908167,0.002,3267.1,3266.5,0.001]
[1767715909750,1.25492109,3267.1,3266.5,0.001]
[1767715910360,0.002,3267.1,3266.5,0.001]
[1767715911843,0.002,3267.1,3266.5,0.03161379]
[1767715912036,0.002,3267.1,3266.5,0.001]
[1767715914481,0.94864343,3267.1,3266.5,0.001]
[1767715914693,0.94664343,3267.0,3266.5,0.001]
[1767715914970,0.17486434,3266.9,3266.5,0.001]
[1767715915474,1.12150777,3266.9,3266.2,0.001]
[1767715915786,1.12150777,3266.9,3265.4,0.798]
[1767715915787,0.94664343,3266.7,3265.4,0.798]
[1767715916074,4.18255505,3266.9,3265.5,0.90299618]
[1767715916271,0.8,3266.8,3265.6,0.47633901]
[1767715916777,1.74664343,3266.8,3265.6,0.47633901]
[1767715916965,0.94664343,3266.8,3265.6,0.47633901]
[1767715917464,4.03591162,3266.9,3265.7,0.93339842]
[1767715918193,0.002,3267.1,3265.8,0.93339842]
[1767715918479,0.002,3267.1,3266.0,0.93339842]
[1767715918637,0.002,3267.1,3266.1,0.93339842]
[1767715918975,0.002,3267.1,3266.1,0.94260864]
[1767715920264,0.002,3267.1,3266.3,0.93339842]
[1767715920467,0.002,3267.1,3266.5,0.93339842]
[1767715920872,1.73454649,3267.1,3265.8,0.93339842]
[1767715921241,0.002,3267.1,3265.8,0.93339842]
[1767715921650,0.002,3267.1,3266.1,3.0617426]
[1767715921869,0.002,3267.1,3266.1,3.67410931]
[1767715922883,0.002,3267.1,3266.1,6.73586492]
[1767715923367,0.002,3267.1,3266.1,7.69014378]
[1767715923743,3.06158224,3268.5,3266.8,0.95427886]
[1767715923744,10.152,3268.5,3266.8,0.95427886]
[1767715924041,10.152,3268.5,3267.0,0.95427886]
[1767715924042,0.002,3268.5,3267.0,0.95427886]
[1767715924242,0.002,3268.5,3267.2,0.95427886]
[1767715925172,0.002,3269.1,3267.8,0.95427886]
[1767715925173,0.00099506,3269.1,3267.8,0.95427886]
[1767715925353,0.00099506,3269.1,3267.9,0.798]
[1767715925552,0.00099506,3269.1,3268.0,0.17522789]
[1767715926138,0.00099506,3269.1,3268.0,1.12950675]
[1767715926343,0.002,3269.4,3268.4,0.95427886]
[1767715926543,0.002,3269.8,3268.6,0.95427886]
[1767715926939,0.002,3269.8,3268.7,7.07291928]
[1767715927146,0.002,3269.8,3268.8,0.70729193]
[1767715927940,0.002,3269.8,3268.9,0.95427886]
[1767715929372,0.002,3269.8,3268.8,0.70729193]
[1767715929558,0.002,3269.8,3268.9,0.798]
[1767715930179,0.002,3269.8,3268.9,3.85711643]
[1767715930577,0.002,3269.8,3268.9,0.798]
[1767715931274,0.002,3269.8,3268.8,0.798]
[1767715931861,0.002,3269.8,3268.8,3.85721471]
[1767715932061,0.002,3269.8,3268.9,0.38572147]
[1767715932257,0.002,3269.8,3268.8,0.798]
[1767715932462,0.002,3270.2,3268.9,0.95427886]
[1767715932846,0.002,3270.2,3268.9,0.96348908]
[1767715933172,0.002,3270.2,3269.2,0.95427886]
[1767715933367,3.08769898,3271.5,3269.1,0.00921022]
[1767715933368,0.9426409,3271.4,3269.4,0.95427886]
[1767715933550,0.00099901,3270.8,3269.7,0.95427886]
[1767715934152,0.00099901,3270.8,3269.8,0.798]
[1767715934776,0.00099901,3270.8,3269.8,1.75227886]
[1767715934958,0.00099901,3270.8,3269.9,0.95427886]
[1767715935165,0.00099901,3270.8,3270.0,1.12950675]
[1767715935554,0.00099901,3270.8,3270.0,4.18754565]
[1767715936260,0.00099901,3270.8,3270.0,4.18757084]
[1767715936462,0.00099901,3270.8,3270.1,0.798]
[1767715936785,0.94363991,3270.8,3269.2,0.95427886]
[1767715936964,0.9426409,3270.6,3269.2,0.95427886]
[1767715937164,0.9426409,3270.6,3269.3,0.17522789]
[1767715937583,7.05791378,3270.5,3269.1,0.798]
[1767715937888,7.05791378,3270.5,3269.1,3.85688526]
[1767715938183,0.9426409,3270.4,3269.2,3.05885136]
[1767715938756,0.9426409,3270.4,3269.3,3.05874067]
[1767715938957,0.9426409,3270.4,3269.4,0.30587407]
[1767715940081,4.0004137,3270.4,3269.4,0.30587407]
[1767715940591,7.0581865,3270.4,3269.4,0.30587407]
[1767715940891,7.0581865,3270.4,3269.1,0.798]
[1767715940892,0.9426409,3270.3,3268.3,0.96448908]
[1767715941058,0.9426409,3270.3,3268.8,3.05916336]
[1767715941059,0.97363645,3270.3,3268.8,3.05916336]
[1767715941262,0.9426409,3270.3,3268.8,3.05916336]
[1767715941463,0.9426409,3270.1,3269.0,3.05903765]
[1767715941664,0.9426409,3270.1,3269.1,0.03058945]
[1767715941857,0.9426409,3270.1,3269.1,3.08951808]
[1767715942060,0.9426409,3270.1,3269.1,0.03058945]
[1767715942257,4.00068092,3270.1,3269.0,0.03059039]
[1767715942461,4.00068092,3270.1,3269.0,3.08956613]
[1767715942462,4.47133088,3270.1,3269.0,3.08956613]
[1767715942695,1.41329086,3270.1,3269.1,3.05892364]
[1767715942897,0.9446409,3270.5,3269.2,0.03058851]
[1767715943688,0.002,3270.5,3269.2,0.98486737]
[1767715944292,0.002,3270.5,3269.4,0.95427886]
[1767715944465,0.00099901,3270.8,3269.5,0.98486456]
[1767715944664,0.00099901,3270.8,3269.6,0.798]
[1767715944966,0.00099901,3270.8,3269.7,0.2088703]
[1767715945963,0.00099901,3270.8,3269.7,1.16314916]
[1767715946394,0.00099901,3270.8,3269.9,0.95427886]
[1767715947178,3.05682897,3271.4,3269.9,0.95427886]
[1767715948007,6.11365794,3271.4,3269.9,0.95427886]
[1767715948301,6.14465349,3271.4,3270.0,1.66136495]
[1767715948596,6.14465349,3271.4,3270.1,3.05801045]
[1767715948995,3.08782452,3271.4,3270.1,6.1160209]
[1767715949168,0.03099555,3271.3,3270.1,3.05801045]
[1767715949595,0.97363645,3271.3,3270.0,0.70708609]
[1767715949770,0.9426409,3271.1,3269.7,0.17828646]
[1767715949972,1.7416409,3271.0,3270.0,3.05809928]
[1767715950297,0.9426409,3271.0,3270.0,6.11620325]
[1767715950501,0.002,3271.1,3270.1,6.72755085]
[1767715950668,0.002,3271.1,3270.1,7.68182971]
[1767715950870,0.002,3271.1,3270.2,0.95427886]
[1767715951276,0.92158749,3272.2,3270.6,0.92028196]
[1767715951599,0.91958749,3272.0,3270.6,0.92028196]
[1767715951785,1.6229745,3272.0,3270.6,0.92028196]
[1767715952395,0.70338701,3272.0,3270.6,0.92028196]
[1767715952602,3.05632812,3271.9,3270.7,3.97773143]
[1767715952810,0.91958749,3271.8,3270.3,0.92028196]
[1767715953099,0.91958749,3271.8,3270.1,4.51162032]
[1767715953100,0.91958749,3271.6,3270.1,3.9]
[1767715953396,0.91958749,3271.4,3270.1,3.9]
[1767715953599,0.91958749,3271.4,3270.1,0.0305801]
[1767715953795,0.73421992,3271.7,3269.7,0.17828646]
[1767715953796,0.91958749,3271.2,3269.7,0.17828646]
[1767715954002,1.09144624,3271.2,3270.0,3.05803462]
[1767715954204,1.89044624,3271.2,3269.8,3.05828602]
[1767715954405,0.91958749,3271.1,3269.7,0.17828646]
[1767715954574,0.91958749,3270.9,3269.7,0.17828646]
[1767715954770,0.91958749,3270.9,3269.1,0.92128196]
[1767715954771,0.95058304,3270.9,3269.1,0.92128196]
[1767715954976,0.95979326,3270.9,3269.1,0.92128196]
[1767715955197,0.95979326,3270.9,3269.3,3.05875389]
[1767715955477,0.95058304,3270.8,3269.3,3.05873469]
[1767715955677,0.95058304,3270.8,3269.4,0.30587347]
[1767715956115,0.91958749,3270.8,3269.4,0.30587347]
[1767715956276,0.799,3270.7,3269.4,0.30587347]
[1767715956476,1.71858749,3270.7,3269.2,3.08943666]
[1767715956784,7.03467339,3270.6,3269.2,0.0305885]
[1767715956987,0.799,3270.5,3269.2,3.05884798]
[1767715957170,0.799,3270.5,3269.1,0.92128196]
[1767715957711,0.91958749,3270.2,3269.1,0.001]
[1767715957916,0.799,3270.1,3269.1,0.001]
[1767715958120,0.91958749,3270.2,3269.1,0.001]
[1767715958121,0.799,3270.0,3269.1,0.001]
[1767715958420,1.08912163,3270.4,3269.1,0.92128196]
[1767715958577,3.05782344,3270.3,3269.2,0.92028196]
[1767715958778,6.11564688,3270.3,3269.2,0.92028196]
[1767715959006,3.05782344,3270.3,3269.2,0.92028196]
[1767715959187,3.05782344,3270.3,3269.3,0.39802099]
[1767715959388,6.91453844,3270.4,3269.3,0.39802099]
[1767715959797,6.91453844,3270.4,3269.1,0.001]
[1767715960300,0.91958749,3270.3,3269.1,0.001]
[1767715960700,6.11583388,3270.2,3269.1,0.001]
[1767715961598,7.03542137,3270.2,3269.1,0.001]
[1767715961799,0.91958749,3270.1,3269.1,0.001]
[1767715961998,0.91958749,3269.9,3269.1,0.001]
[1767715962313,1.00933383,3270.0,3269.1,0.001]
[1767715962505,3.05791694,3270.2,3269.1,0.001]
[1767715962714,0.799,3270.1,3269.1,0.001]
[1767715963004,0.799,3270.1,3269.4,0.001]
[1767715964706,6.11620794,3270.0,3269.4,0.001]
[1767715964906,7.03579543,3270.0,3269.4,0.001]
[1767715965107,0.78347954,3269.9,3269.1,0.001]
[1767715965290,1.70306703,3269.9,3269.1,0.001]
[1767715966810,3.05829102,3269.8,3269.1,0.001]
[1767715967008,0.799,3269.8,3269.1,0.001]
[1767715969384,0.8,3269.7,3269.1,0.001]
[1767715969583,0.8,3269.6,3269.1,0.001]
[1767715970211,0.8,3269.7,3269.1,0.001]
[1767715970414,0.8,3269.7,3269.1,0.92128196]
[1767715972331,3.85839724,3269.7,3269.1,0.001]
[1767715972491,0.03099555,3269.6,3269.1,0.001]
[1767715972693,4.24423696,3269.7,3269.1,0.001]
[1767715973398,0.8,3269.6,3269.1,0.001]
[1767715974025,0.8,3269.5,3269.1,0.001]
[1767715974592,0.8,3269.5,3269.4,0.001]
[1767715975794,3.85864485,3269.5,3269.1,0.001]
[1767715976012,4.24470934,3269.5,3269.1,0.001]
[1767715976211,4.24470934,3269.5,3268.3,0.001]
[1767715976212,0.91958749,3269.4,3268.3,0.001]
[1767715977090,0.95058304,3269.4,3268.3,0.001]
[1767715977888,7.1140119,3269.3,3268.3,0.001]
[1767715978092,0.9964944,3269.1,3268.3,0.001]
[1767715978288,0.9964944,3268.9,3268.3,0.001]
[1767715978520,0.8,3268.8,3268.3,0.001]
[1767715978722,0.9964944,3268.9,3268.3,0.001]
[1767715978928,0.8,3268.7,3268.3,0.001]
[1767715979625,0.8,3268.6,3268.3,0.001]
[1767715980140,0.71450075,3269.2,3268.3,0.001]
[1767715980355,3.05885231,3269.2,3268.3,0.001]
[1767715980521,3.0588028,3269.3,3268.3,0.97474581]
[1767715980717,0.38606449,3269.5,3268.3,0.97474581]
[1767715980899,3.85869512,3269.4,3268.3,0.97474581]
[1767715981402,3.06041256,3269.7,3268.3,0.97474581]
[1767715981607,0.002,3269.7,3268.5,0.94023265]
[1767715981912,0.8,3269.6,3268.7,0.94023265]
[1767715982115,0.8,3269.6,3268.8,0.94023265]
[1767715982311,0.8,3269.6,3268.9,1.3401845]
[1767715982824,0.8,3269.6,3268.9,0.94023265]
[1767715983205,3.85848733,3269.6,3268.9,0.94023265]
[1767715983706,0.03099555,3269.5,3268.5,0.94023265]
[1767715984225,6.91697466,3269.6,3268.5,3.99973422]
[1767715984226,3.85848733,3269.6,3268.5,3.99973422]
[1767715984416,3.85848733,3269.6,3268.6,0.39997342]
[1767715984731,0.8,3269.5,3268.5,0.94023265]
[1767715985117,0.8,3269.5,3268.5,3.99973277]
[1767715985305,0.8,3269.4,3268.6,0.94023265]
[1767715986020,0.8,3269.4,3268.3,3.06068401]
[1767715986331,0.8,3269.4,3268.4,0.47989167]
[1767715986634,3.85866687,3269.4,3268.4,0.47989167]
[1767715987131,6.91733374,3269.4,3268.7,0.001]
[1767715987342,0.03099555,3269.3,3268.7,0.001]
[1767715987631,10.87616257,3269.4,3268.7,0.001]
[1767715987632,7.0194957,3269.4,3268.7,0.001]
[1767715987830,1.50194957,3269.3,3268.7,0.001]
[1767715988220,0.8,3269.2,3268.7,0.001]
[1767715989114,0.90216196,3269.4,3268.7,0.94123265]
[1767715989115,0.002,3269.4,3268.7,0.94123265]
[1767715990204,0.002,3269.4,3268.9,0.94023265]
[1767715990736,3.0579856,3270.2,3269.2,0.94023265]
[1767715990909,0.8,3270.1,3269.2,0.94023265]
[1767715992236,3.85766309,3270.5,3269.4,0.94023265]
[1767715992635,0.8,3270.5,3269.4,0.94023265]
[1767715992828,3.85765335,3270.5,3269.4,0.94023265]
[1767715993736,3.05756605,3270.6,3269.4,0.94023265]
[1767715993737,3.05757956,3270.6,3269.4,0.94023265]
[1767715993945,0.8,3270.5,3269.6,0.94023265]
[1767715994239,0.8,3270.6,3269.7,3.99861721]
[1767715994538,0.8,3270.6,3269.7,0.94023265]
[1767715994923,3.8576045,3270.6,3269.7,0.94023265]
[1767715995122,6.915209,3270.6,3269.7,0.94023265]
[1767715995846,0.6915209,3270.5,3269.5,0.70577502]
[1767715996047,3.8576045,3270.6,3269.5,3.76429792]
[1767715996350,3.05747198,3270.7,3269.5,3.76429792]
[1767715996351,0.002,3271.1,3269.9,0.94023265]
[1767715998345,0.002,3271.1,3270.1,0.94023265]
[1767715998523,0.002,3271.1,3270.3,0.94023265]
[1767715999333,0.002,3270.8,3270.3,0.94023265]
[1767715999534,3.85642154,3271.8,3270.8,0.94023265]
[1767715999729,6.91284308,3271.8,3270.8,0.94023265]
[1767716000160,6.91284308,3271.8,3269.9,0.94023265]
[1767716000161,0.94036773,3271.7,3269.9,0.94023265]
[1767716000326,0.90937218,3271.5,3269.9,0.94023265]
[1767716000526,0.90016196,3271.2,3269.9,0.94023265]
[1767716000869,0.799,3271.1,3269.9,0.94023265]
[1767716001350,1.69916196,3271.1,3269.9,0.94023265]
[1767716001516,1.07317771,3271.0,3269.3,0.94023265]
[1767716001722,0.93115751,3270.9,3269.4,3.05860307]
[1767716001923,0.93115751,3270.9,3269.3,0.94023265]
[1767716002456,0.90016196,3270.7,3269.4,3.05866519]
[1767716002758,0.93115751,3270.6,3268.7,0.001]
[1767716002938,0.90016196,3270.4,3268.7,0.94123265]
[1767716003252,0.90016196,3270.4,3269.1,3.05887915]
[1767716003643,0.90016196,3270.4,3268.9,3.05910793]
[1767716003848,0.90016196,3270.4,3269.1,3.05894128]
[1767716004045,0.90016196,3270.3,3269.2,0.30589413]
[1767716004243,0.799,3270.2,3269.2,0.30589413]
[1767716004551,3.85693383,3270.2,3269.2,3.36474623]
[1767716004758,0.799,3270.2,3269.2,3.36474623]
[1767716004957,3.05793541,3270.2,3269.3,0.64236457]
[1767716005173,0.799,3270.1,3269.3,0.64236457]
[1767716005346,0.799,3270.1,3268.9,3.05907792]
[1767716005545,0.799,3270.1,3268.8,3.05920179]
[1767716005546,1.69916196,3270.1,3268.7,4.00052721]
[1767716005745,0.90016196,3270.0,3268.7,0.94123265]
[1767716006063,0.90016196,3270.0,3269.2,3.05884855]
[1767716006570,0.90016196,3270.0,3268.7,0.94123265]
[1767716006780,0.90016196,3270.0,3268.8,6.5983139]
[1767716007077,0.799,3270.1,3268.8,7.53854655]
[1767716007633,3.85704627,3270.1,3268.9,0.94023265]
[1767716008650,3.0584781,3269.6,3268.7,0.001]
[1767716008849,6.1169562,3269.6,3268.7,0.001]
[1767716009158,0.00921022,3269.5,3268.7,0.001]
[1767716009457,1.69916196,3269.4,3268.7,0.001]
[1767716009672,0.90937218,3269.3,3268.7,0.001]
[1767716009955,1.07099918,3269.2,3268.7,0.001]
[1767716010163,1.07099918,3269.2,3267.7,4.00043126]
[1767716010164,1.07099918,3269.2,3267.7,0.94023265]
[1767716010362,0.90016196,3269.0,3267.3,0.94023265]
[1767716010548,0.90016196,3269.0,3267.6,3.06032245]
[1767716010756,6.11826608,3268.9,3267.4,3.06051977]
[1767716010956,0.8,3268.8,3267.4,6.1210572]
[1767716011682,0.90883241,3268.7,3267.3,0.94023265]
[1767716011974,0.91804263,3268.7,3267.3,0.94023265]
[1767716012138,0.90883241,3268.7,3267.3,7.06145949]
[1767716012458,1.58276383,3268.8,3267.4,0.96391141]
[1767716012640,6.11864042,3268.7,3267.5,0.96391141]
[1767716012962,0.77106145,3268.6,3267.5,1.36634743]
[1767716014359,1.68910408,3268.6,3267.1,4.0246895]
[1767716014549,1.68910408,3268.6,3267.2,0.96391141]
[1767716014959,6.11901482,3268.5,3267.3,0.96391141]
[1767716015163,6.11901482,3268.5,3266.8,0.798]
[1767716015164,0.91804263,3268.4,3266.9,0.96391141]
[1767716015462,0.91804263,3268.2,3266.9,0.96391141]
[1767716015758,0.8,3268.1,3266.9,0.96391141]
[1767716016061,0.00921022,3268.0,3266.9,0.96391141]
[1767716016246,0.91804263,3268.0,3266.5,4.05583512]
[1767716016444,0.17180426,3267.9,3266.6,0.71182862]
[1767716016764,0.17180426,3267.9,3266.5,0.99452521]
[1767716017064,0.17180426,3267.9,3266.7,3.06113982]
[1767716017265,3.8601628,3267.8,3266.6,4.02519837]
[1767716017769,3.8601628,3267.8,3266.7,0.96391141]
[1767716019463,3.8601628,3267.8,3266.8,3.06109954]
[1767716019666,6.9203256,3267.8,3266.8,0.70862979]
[1767716019963,0.91804263,3267.4,3266.4,0.001]
[1767716020471,0.00921022,3267.2,3266.4,0.001]
[1767716020657,0.8,3267.1,3266.4,0.001]
[1767716021965,3.86087973,3267.1,3266.4,0.001]
[1767716023479,7.61484174,3267.1,3266.4,0.001]
[1767716023678,0.00921022,3267.0,3266.4,0.001]
[1767716024182,3.0702072,3267.0,3266.7,0.001]
[1767716024391,0.90883241,3266.9,3265.7,0.96391141]
[1767716024556,0.90883241,3266.9,3264.4,3.06327469]
[1767716024557,1.92814599,3266.8,3265.4,4.02628157]
[1767716024946,1.92814599,3266.8,3265.5,3.06230628]
[1767716025259,1.92814599,3266.8,3265.4,0.99453552]
[1767716025465,1.92814599,3266.8,3265.5,3.0622981]
[1767716025778,1.92814599,3266.8,3265.6,3.0621943]
[1767716025953,1.92814599,3266.8,3265.7,0.30621943]
[1767716026153,3.06119325,3266.7,3265.7,0.30621943]
[1767716026355,0.90883241,3266.5,3265.4,0.96391141]
[1767716026556,0.90883241,3266.5,3265.3,3.06245055]
[1767716026770,0.90883241,3266.5,3265.4,3.06240666]
[1767716027282,0.90883241,3266.5,3265.3,3.06246182]
[1767716027862,0.80921022,3266.6,3265.3,0.96391141]
[1767716028182,3.0614744,3266.4,3265.4,4.42897189]
[1767716028380,3.0614744,3266.4,3265.5,0.96391141]
[1767716029679,7.04099143,3266.4,3265.1,0.96491141]
[1767716029850,0.00921022,3266.2,3265.1,0.96491141]
[1767716030051,0.8,3266.1,3265.3,0.96391141]
[1767716030246,3.86177024,3266.1,3265.3,0.96391141]
[1767716030458,3.06149962,3266.4,3265.3,0.96391141]
[1767716030657,0.8,3266.0,3265.3,0.96391141]
[1767716031883,0.30614996,3266.3,3265.3,4.02641483]
[1767716032084,0.8,3265.9,3265.4,0.96391141]
[1767716033192,0.30614996,3266.3,3265.4,0.96391141]
[1767716033406,0.8,3266.3,3265.5,0.96391141]
[1767716034799,0.04020577,3266.2,3265.1,0.96491141]
[1767716035290,3.06175561,3266.1,3265.1,0.96491141]
[1767716035488,0.61636994,3266.0,3265.1,0.96491141]
[1767716035790,0.61636994,3266.0,3265.1,4.0275924]
[1767716035999,3.06175561,3266.1,3265.4,0.001]
[1767716036186,0.8,3266.0,3265.4,0.001]
[1767716036553,0.00921022,3265.9,3265.4,0.001]
[1767716037681,3.07124409,3265.9,3265.4,0.001]
[1767716037982,7.10618824,3265.9,3265.1,0.001]
[1767716038186,0.79371838,3265.8,3265.1,0.001]
[1767716038365,0.8,3265.9,3265.1,0.001]
[1767716039084,0.97291028,3266.0,3265.1,0.001]
[1767716039394,0.8,3265.8,3265.1,0.001]
[1767716039761,3.86208507,3265.8,3265.1,0.001]
[1767716039996,0.38930806,3265.7,3265.1,0.001]
[1767716040394,0.8,3265.6,3265.1,0.001]
[1767716041698,4.01197729,3265.4,3263.7,0.98738108]
[1767716041897,0.95877556,3265.3,3264.0,0.98738108]
[1767716042260,0.00921022,3265.1,3264.0,0.98738108]
[1767716042588,0.8,3265.0,3264.0,0.98738108]
[1767716043268,0.00921022,3264.9,3264.0,0.98738108]
[1767716043807,3.06297476,3264.8,3263.6,0.98738108]
[1767716044104,1.1082185,3264.7,3263.6,0.98738108]
[1767716044410,0.801,3264.6,3263.6,0.98738108]
[1767716045363,0.00921022,3264.5,3263.6,0.98738108]
[1767716045898,0.00921022,3264.5,3263.2,0.98738108]
[1767716046191,0.801,3264.4,3263.6,3.06408589]
[1767716046397,0.801,3264.4,3263.6,0.61282778]
[1767716046603,0.801,3264.4,3263.3,0.98738108]
[1767716046893,0.801,3264.4,3263.4,4.05165194]
[1767716047194,0.801,3264.4,3263.4,4.05158668]
[1767716047401,0.801,3264.4,3263.5,3.06410439]
[1767716047694,0.801,3264.4,3263.9,0.001]
[1767716047891,3.07171596,3265.3,3264.0,0.98738108]
[1767716048187,0.00921022,3264.9,3263.9,0.001]
[1767716048390,0.94956534,3264.9,3263.9,0.001]
[1767716048571,0.00921022,3265.1,3263.9,0.001]
[1767716048773,0.00921022,3264.9,3263.9,0.001]
[1767716049365,0.801,3264.8,3263.9,0.001]
[1767716050090,3.0631624,3264.6,3263.9,0.001]
[1767716050281,0.00921022,3264.5,3263.9,0.001]
[1767716050590,0.00921022,3264.3,3263.9,0.001]
[1767716050779,0.801,3264.2,3263.9,0.001]
[1767716051293,0.801,3264.1,3263.9,0.001]
[1767716051786,0.00921022,3264.3,3263.9,0.001]
[1767716051980,0.801,3264.2,3263.9,0.001]
[1767716052566,0.94956534,3264.5,3263.9,0.001]
[1767716052767,0.801,3264.4,3263.9,0.98838108]
[1767716053698,0.801,3264.4,3263.9,0.001]
[1767716054594,3.86435797,3264.4,3263.9,0.001]
[1767716055099,6.95871149,3264.4,3263.9,0.001]
[1767716055268,6.92771594,3264.4,3263.9,0.001]
[1767716055469,0.69277159,3264.3,3263.9,0.001]
[1767716056398,0.801,3264.2,3263.9,0.001]
[1767716056705,0.801,3264.1,3263.9,0.001]
[1767716058371,6.15844653,3264.0,3263.0,0.98738108]
[1767716058575,7.10801187,3264.0,3262.8,0.001]
[1767716058795,1.64550999,3263.9,3262.8,0.001]
[1767716059006,0.03099555,3263.8,3262.8,0.001]
[1767716059305,0.95877556,3263.7,3262.8,0.001]
[1767716059508,0.801,3263.6,3262.8,0.001]
[1767716059686,0.17597756,3263.5,3262.8,0.001]
[1767716060576,6.12857754,3263.4,3262.8,0.001]
[1767716060974,3.06428877,3263.4,3262.8,0.001]
[1767716061197,6.12857754,3263.4,3262.8,0.001]
[1767716061807,4.01385411,3263.4,3262.8,0.001]
[1767716061993,1.52640358,3263.3,3262.8,0.001]
[1767716062702,0.801,3263.2,3262.8,0.001]
[1767716062891,0.72540358,3263.3,3262.8,0.001]
[1767716063098,0.801,3263.1,3262.8,0.001]
[1767716063299,0.801,3263.0,3262.4,0.98738108]
[1767716063603,0.801,3262.9,3262.4,0.98738108]
[1767716063986,0.801,3262.9,3262.0,0.98738108]
[1767716064307,0.801,3262.9,3262.0,4.05294186]
[1767716064499,0.801,3262.9,3262.0,4.45823605]
[1767716064809,0.801,3262.9,3262.1,3.06548735]
[1767716065812,0.801,3262.9,3261.4,0.98738108]
[1767716065813,7.880088,3262.9,3261.4,0.98738108]
[1767716065983,7.880088,3262.9,3261.7,3.06583167]
[1767716066182,0.7880088,3262.8,3261.7,3.06583167]
[1767716066396,0.7880088,3262.8,3261.7,0.98738108]
[1767716066591,0.801,3262.7,3262.0,4.05295686]
[1767716066807,3.06447658,3263.2,3262.1,0.98738108]
[1767716067118,0.801,3263.1,3262.1,0.98738108]
[1767716067312,3.06447658,3263.2,3262.1,0.98738108]
[1767716067613,0.40140419,3263.2,3262.2,0.98738108]
[1767716067977,0.801,3263.1,3262.2,0.98738108]
[1767716068888,0.40140419,3263.2,3262.3,0.98738108]
[1767716069094,0.801,3263.1,3262.3,0.98738108]
[1767716069289,0.801,3263.1,3262.4,0.98738108]
[1767716069694,0.801,3263.1,3262.3,0.7523483]
[1767716069695,0.801,3263.1,3262.2,3.06539024]
[1767716069887,0.801,3263.1,3262.1,4.4581455]
[1767716070306,0.801,3263.1,3262.2,3.06540204]
[1767716070503,0.801,3263.0,3262.3,0.98738108]
[1767716070901,0.801,3263.0,3262.1,0.40529569]
[1767716071212,0.801,3263.0,3262.5,0.001]
[1767716071380,1.28251863,3263.0,3262.5,0.001]
[1767716072009,0.801,3262.9,3262.5,0.001]
[1767716072395,3.06457662,3263.1,3262.5,0.001]
[1767716072613,0.801,3263.0,3262.5,0.001]
[1767716072797,0.801,3262.9,3262.5,0.001]
[1767716073812,0.03099555,3263.2,3262.5,0.001]
[1767716074112,4.05170939,3266.4,3262.5,0.95681366]
[1767716074113,0.801,3263.1,3262.5,0.95681366]
[1767716074692,6.1280142,3263.7,3262.5,0.95681366]
[1767716074887,1.41472244,3263.6,3262.6,0.95581366]
[1767716075220,0.04020577,3263.5,3262.6,0.95581366]
[1767716075918,0.801,3263.4,3262.6,0.95581366]
[1767716076118,0.03099555,3263.3,3262.6,0.95581366]
[1767716076289,0.801,3263.2,3262.6,0.95581366]
[1767716076816,0.03099555,3263.1,3262.6,0.95581366]
[1767716077323,3.86551969,3263.2,3262.5,0.001]
[1767716077521,0.69299765,3263.1,3262.5,0.001]
[1767716077816,0.69299765,3263.1,3262.5,3.06613401]
[1767716078119,3.06431785,3263.4,3262.6,0.95581366]
[1767716078501,0.801,3263.3,3262.6,0.95581366]
[1767716078902,3.8654205,3263.3,3262.6,0.95581366]
[1767716079711,0.04020577,3263.2,3262.5,0.001]
[1767716079935,0.00921022,3263.2,3262.5,0.001]
[1767716080117,0.78969722,3263.1,3262.5,0.001]
[1767716081122,3.85432482,3263.1,3262.5,0.001]
[1767716081425,0.801,3263.0,3262.5,0.001]
[1767716082223,0.78969722,3263.1,3262.5,0.001]
[1767716082421,0.801,3263.0,3262.5,0.95681366]
[1767716082818,0.801,3263.0,3262.5,0.001]
[1767716083514,0.38656035,3262.9,3262.5,0.001]
[1767716084509,0.801,3262.8,3262.5,0.001]
[1767716084913,0.38656035,3262.9,3262.5,0.001]
[1767716085114,0.801,3262.7,3262.5,0.001]
[1767716087026,0.801,3262.6,3262.5,0.001]
[1767716090037,0.03299555,3263.1,3262.5,0.001]
[1767716090255,0.801,3263.0,3262.5,0.001]
[1767716091245,1.18775948,3263.0,3262.5,0.001]
[1767716091449,4.25249483,3263.0,3262.5,0.001]
[1767716092044,1.18775948,3263.0,3262.5,0.001]
[1767716092451,0.801,3263.0,3262.5,0.001]
[1767716093668,0.801,3262.9,3262.5,0.001]
[1767716093831,0.801,3262.8,3262.5,0.001]
[1767716094633,0.95992097,3263.1,3262.5,0.001]
[1767716094930,0.83199555,3263.0,3262.5,0.001]
[1767716095149,0.17919165,3262.9,3262.5,0.001]
[1767716095356,0.83199555,3263.0,3262.5,0.001]
[1767716095744,0.002,3262.7,3262.5,0.001]
[1767716096156,0.801,3262.6,3262.5,0.001]
[1767716096544,0.002,3262.7,3262.5,0.001]
[1767716096756,0.002,3262.7,3262.5,0.95834926]
[1767716096957,0.803,3262.7,3262.5,0.95834926]
[1767716097160,0.002,3263.1,3262.5,0.95834926]
[1767716097547,0.002,3263.4,3262.9,0.95734926]
[1767716097848,0.00921022,3264.9,3263.0,0.95734926]
[1767716097849,0.90153004,3264.3,3263.0,0.95734926]
[1767716098051,6.95888339,3264.3,3263.2,0.95734926]
[1767716098260,6.92788784,3264.3,3263.2,0.95734926]
[1767716098467,3.06344392,3264.3,3263.2,0.95734926]
[1767716098670,6.16709361,3264.3,3263.2,0.95734926]
[1767716098869,7.76160538,3264.3,3263.2,0.95734926]
[1767716099171,7.73060983,3264.3,3263.2,0.95734926]
[1767716099378,0.03099555,3264.2,3263.2,0.95734926]
[1767716099672,4.65795569,3264.3,3263.2,0.95734926]
[1767716099970,7.75239516,3264.3,3263.2,0.95734926]
[1767716100145,7.02841788,3264.3,3263.3,1.39976069]
[1767716100348,0.91074026,3264.2,3263.1,0.40221076]
[1767716100547,0.91074026,3264.0,3262.7,0.95734926]
[1767716100752,0.91074026,3263.8,3262.7,0.95734926]
[1767716101141,0.00921022,3263.6,3262.7,0.95734926]
[1767716101342,0.91074026,3263.8,3262.7,0.95734926]